bitfinex-derivatives/quotes_SOLF0:USTF0_20241009
["timestamp","ask_amount","ask_price","bid_price","bid_amount"]
[1728498771399,3.5478,141.03,141.01,3.5481]
[1728498774394,3.5478,141.03,141.0,3.5482]
[1728498774889,3.5478,141.03,141.01,3.5481]
[1728498775091,17.03,141.06,141.01,3.5481]
[1728498776303,2.7971,141.07,141.02,3.5477]
[1728498776806,3.5472,141.05,141.02,3.5477]
[1728498777297,3.547,141.06,141.03,3.5474]
[1728498777495,3.547,141.06,141.0,17.03]
[1728498777891,3.547,141.06,141.03,3.5474]
[1728498778195,8.6971,141.07,141.0,17.03]
[1728498778900,3.5469,141.06,141.03,3.5474]
[1728498779802,3.5469,141.06,141.0,3.5482]
[1728498779803,3.5478,141.03,141.0,3.5482]
[1728498780002,3.5478,141.03,140.99,6.02502]
[1728498780003,18.4349,141.06,140.99,6.02502]
[1728498780299,17.03,141.04,140.99,0.12502]
[1728498780502,3.5484,141.0,140.99,0.12502]
[1728498780705,3.5484,141.0,140.93,17.15502]
[1728498780706,17.03,141.0,140.93,0.12502]
[1728498780901,3.5492,140.97,140.93,3.67492]
[1728498781103,17.03,140.98,140.93,3.67492]
[1728498781808,3.5492,140.97,140.93,0.12502]
[1728498782008,3.5492,140.97,140.94,3.5497]
[1728498782206,7.3049,140.99,140.93,0.12502]
[1728498782407,1.4049,140.99,140.95,3.5495]
[1728498782608,7.3069,141.01,140.93,17.15502]
[1728498782812,3.5487,140.99,140.93,17.15502]
[1728498783103,7.3069,141.01,140.93,17.15502]
[1728498783309,24.3369,141.01,140.93,0.12502]
[1728498783509,3.5495,140.96,140.93,0.12502]
[1728498784000,3.5498,140.95,140.93,0.12502]
[1728498784210,17.03,140.99,140.93,0.12502]
[1728498784409,17.03,140.97,140.93,0.12502]
[1728498784800,3.5499,140.94,140.93,0.12502]
[1728498785002,3.5499,140.94,140.87,6.04502]
[1728498785003,17.03,140.94,140.87,6.04502]
[1728498785204,17.03,140.94,140.87,0.12502]
[1728498785205,5.92,140.93,140.87,0.12502]
[1728498785410,5.92,140.93,140.87,3.67652]
[1728498785811,3.5508,140.91,140.87,3.67652]
[1728498786202,5.92,140.93,140.87,3.67652]
[1728498786603,3.551,140.9,140.87,3.67652]
[1728498786813,1.3906,140.92,140.88,3.5513]
[1728498787006,1.3906,140.92,140.87,0.12502]
[1728498787514,4.9411,140.92,140.89,3.5511]
[1728498788716,3.5502,140.93,140.9,3.5507]
[1728498789308,3.5505,140.92,140.89,3.5511]
[1728498790714,3.5502,140.93,140.9,3.5506]
[1728498790915,1.351,140.95,140.87,0.12502]
[1728498791316,3.55,140.94,140.91,3.5505]
[1728498791526,8.6013,140.96,140.87,27.39502]
[1728498791712,0.12502,140.99,140.89,27.27]
[1728498791912,3.549,140.98,140.95,3.5496]
[1728498792914,3.5489,140.98,140.95,3.5495]
[1728498793412,3.5492,140.97,140.94,3.5497]
[1728498794919,27.39502,140.99,140.9,1.41]
[1728498795117,3.5499,140.94,140.9,5.92]
[1728498795311,33.19,140.97,140.9,5.92]
[1728498795813,33.19,140.97,140.9,9.4708]
[1728498795814,3.5503,140.93,140.9,9.4708]
[1728498796023,33.19,140.97,140.9,5.92]
[1728498796314,33.19,140.97,140.88,7.2524]
[1728498796732,33.19,140.97,140.88,1.3324]
[1728498797019,5.92,140.97,140.88,7.2524]
[1728498797217,3.5499,140.94,140.9,3.5507]
[1728498797414,3.5499,140.94,140.88,7.2524]
[1728498797813,3.5499,140.94,140.91,3.5504]
[1728498798615,3.5495,140.96,140.93,3.55]
[1728498799016,5.92,140.97,140.88,7.2524]
[1728498799914,3.5498,140.95,140.92,3.5503]
[1728498800620,3.5498,140.95,140.93,3.5501]
[1728498802922,3.5493,140.97,140.94,3.5497]
[1728498805020,3.5491,140.98,140.95,3.5496]
[1728498805219,6.02502,140.99,140.92,5.9]
[1728498805822,3.5491,140.97,140.94,3.5496]
[1728498806821,0.12502,140.99,140.95,3.5496]
[1728498807126,3.549,140.98,140.95,3.5496]
[1728498807426,3.67372,140.99,140.96,3.5492]
[1728498808021,3.5489,140.98,140.96,3.5492]
[1728498809319,3.5489,140.98,140.95,3.5495]
[1728498809524,0.12502,140.99,140.96,17.04]
[1728498809716,0.12502,140.99,140.96,22.94]
[1728498810117,0.12502,140.99,140.98,3.5489]
[1728498812327,6.02502,141.05,140.98,17.04]
[1728498812529,0.12502,141.05,140.97,2.7193]
[1728498812825,0.12502,141.05,140.98,17.04]
[1728498813018,0.12502,141.05,140.99,5.9]
[1728498813224,3.5474,141.04,141.01,3.548]
[1728498813423,0.12502,141.05,141.01,3.548]
[1728498814026,0.12502,141.05,141.02,3.5478]
[1728498814616,3.67222,141.05,141.02,3.5478]
[1728498818329,0.12502,141.05,141.02,17.04]
[1728498818534,0.12502,141.05,141.04,3.5473]
[1728498823634,0.12502,141.05,141.04,20.5873]
[1728498824037,0.12502,141.05,141.04,26.4873]
[1728498826825,0.12502,141.05,141.04,3.5473]
[1728498827125,0.12502,141.05,141.01,1.3232]
[1728498827126,3.67212,141.05,141.03,9.4475]
[1728498827328,3.67212,141.05,141.03,3.5475]
[1728498830431,0.12502,141.05,141.03,3.5475]
[1728498830833,0.12502,141.05,141.04,3.5473]
[1728498833036,0.12502,141.05,141.03,3.5475]
[1728498833338,3.5475,141.04,141.01,5.9]
[1728498833932,3.5475,141.04,141.02,3.5477]
[1728498834242,3.5479,141.02,140.98,5.9]
[1728498834444,0.12502,141.05,141.0,3.5482]
[1728498834737,17.04,141.03,140.94,24.2583]
[1728498834938,26.54094465,141.03,140.94,24.2583]
[1728498835241,22.94,141.03,140.94,24.2583]
[1728498835437,26.46749943,141.03,140.94,22.94]
[1728498835940,26.46749943,141.03,140.94,5.9]
[1728498836336,3.5483,141.01,140.96,3.5494]
[1728498836540,26.46749943,141.03,140.96,3.5494]
[1728498837039,3.5488,140.99,140.96,3.5494]
[1728498839647,3.5489,140.98,140.96,3.5494]
[1728498839847,3.5489,140.98,140.94,5.9]
[1728498840047,17.04,141.01,140.95,3.5495]
[1728498840345,17.04,140.97,140.93,0.12502]
[1728498840542,22.94,140.96,140.93,0.12502]
[1728498840735,22.94,140.96,140.87,73.66100056]
[1728498840736,17.04,140.94,140.87,56.62100056]
[1728498841043,17.04,140.94,140.88,6.1497418]
[1728498841240,3.5511,140.89,140.87,0.12502]
[1728498841444,17.04,140.94,140.89,3.5511]
[1728498841646,5.9,140.93,140.89,3.5511]
[1728498843043,5.9,140.93,140.87,0.12502]
[1728498843243,17.04,140.92,140.87,0.12502]
[1728498843446,17.04,140.9,140.87,0.12502]
[1728498843752,17.04,140.88,140.81,0.12502]
[1728498843942,22.94,140.88,140.81,0.12502]
[1728498844654,3.5527,140.83,140.81,0.12502]
[1728498845147,22.94,140.88,140.81,0.12502]
[1728498845344,3.5528,140.83,140.81,0.12502]
[1728498846150,1.4148,140.87,140.81,0.12502]
[1728498846849,7.3148,140.87,140.81,0.12502]
[1728498847251,3.5519,140.87,140.82,17.04]
[1728498848149,3.5519,140.87,140.84,3.5524]
[1728498848354,3.5519,140.87,140.82,17.04]
[1728498848753,3.5519,140.87,140.83,3.5526]
[1728498849267,3.5519,140.87,140.82,17.04]
[1728498850464,3.5519,140.87,140.84,3.5523]
[1728498852472,3.5519,140.86,140.83,3.5526]
[1728498852767,3.5519,140.86,140.81,17.16502]
[1728498852969,3.5525,140.84,140.81,0.12502]
[1728498853374,5.9,140.86,140.81,0.12502]
[1728498853572,3.5526,140.83,140.81,0.12502]
[1728498854380,3.5529,140.82,140.81,0.12502]
[1728498856270,3.5527,140.83,140.81,0.12502]
[1728498856475,7.3387,140.86,140.81,0.12502]
[1728498856777,3.5524,140.84,140.82,3.5528]
[1728498857071,3.5524,140.84,140.81,0.12502]
[1728498857477,3.5527,140.83,140.81,0.12502]
[1728498857871,7.3387,140.86,140.81,3.67802]
[1728498858073,1.3422,140.89,140.81,0.12502]
[1728498858283,5.9,140.88,140.81,0.12502]
[1728498858480,5.9,140.88,140.82,3.5528]
[1728498858682,3.5523,140.85,140.82,3.5528]
[1728498859375,3.5524,140.84,140.82,3.5528]
[1728498859579,3.5524,140.84,140.81,3.67802]
[1728498859782,22.94,140.88,140.81,0.12502]
[1728498859982,3.5528,140.83,140.81,0.12502]
[1728498860185,22.94,140.88,140.81,0.12502]
[1728498861885,3.5525,140.84,140.81,3.67812]
[1728498862787,3.5525,140.84,140.82,3.5528]
[1728498863181,3.5521,140.86,140.81,0.12502]
[1728498863383,3.5521,140.86,140.83,3.5525]
[1728498864387,3.5521,140.86,140.82,3.5526]
[1728498864388,3.5519,140.86,140.82,3.5526]
[1728498864579,22.94,140.88,140.82,3.5526]
[1728498865174,22.94,140.88,140.81,3.67812]
[1728498865775,17.04,140.86,140.81,0.12502]
[1728498866179,3.5528,140.83,140.81,0.12502]
[1728498866382,17.04,140.86,140.81,0.12502]
[1728498866889,3.5525,140.84,140.81,0.12502]
[1728498867184,3.5525,140.84,140.81,3.67802]
[1728498868277,3.5528,140.83,140.81,0.12502]
[1728498868681,17.04,140.86,140.81,0.12502]
[1728498868975,3.5525,140.84,140.81,3.67802]
[1728498869281,3.5525,140.84,140.81,0.12502]
[1728498870286,3.5523,140.85,140.82,3.5529]
[1728498870592,5.9,140.88,140.84,3.5522]
[1728498870892,5.9,140.88,140.81,0.12502]
[1728498871688,22.94,140.88,140.81,0.12502]
[1728498872081,3.5524,140.84,140.82,3.5529]
[1728498873389,3.5526,140.83,140.81,3.67812]
[1728498873787,3.5526,140.83,140.81,0.12502]
[1728498874393,3.5529,140.82,140.81,0.12502]
[1728498875287,17.04,140.86,140.81,0.12502]
[1728498875479,17.04,140.86,140.81,3.67802]
[1728498876186,3.5525,140.84,140.81,3.67802]
[1728498876787,3.5525,140.84,140.81,0.12502]
[1728498877186,3.5525,140.84,140.81,3.67802]
[1728498878495,3.51389349,140.87,140.81,0.12502]
[1728498878693,1.3422,140.89,140.81,0.12502]
[1728498878887,5.9,140.88,140.81,0.12502]
[1728498879086,7.08715385,140.87,140.84,3.5522]
[1728498879491,3.53535385,140.87,140.81,6.02502]
[1728498879692,3.551,140.9,140.87,3.5514]
[1728498880390,7.2423,140.91,140.87,3.5514]
[1728498880594,3.5512,140.89,140.87,3.5514]
[1728498881189,3.5512,140.89,140.83,20.56099463]
[1728498881390,3.5512,140.89,140.86,3.5518]
[1728498881993,1.3423,140.91,140.83,20.56099463]
[1728498882195,96.65457536,140.92,140.85,17.04]
[1728498882998,3.551,140.9,140.86,3.5517]
[1728498883296,3.551,140.9,140.85,17.04]
[1728498883689,3.551,140.9,140.86,3.5518]
[1728498884288,3.5511,140.89,140.86,3.5518]
[1728498884798,3.5511,140.89,140.87,3.5516]
[1728498886411,0.12502,140.93,140.87,17.04]
[1728498887296,3.67532,140.93,140.9,3.5507]
[1728498887498,0.12502,140.93,140.87,17.04]
[1728498887709,0.12502,140.93,140.92,3.5504]
[1728498887901,17.04,141.04,140.91,17.04]
[1728498888206,4.1073,141.04,140.96,17.04]
[1728498888398,3.5477,141.03,140.98,3.5489]
[1728498888604,4.1073,141.04,140.98,3.5489]
[1728498888807,4.1073,141.04,140.98,24.10463679]
[1728498889001,4.1073,141.04,140.98,20.5889]
[1728498889504,4.1073,141.04,140.98,3.5489]
[1728498890101,3.548,141.02,140.98,3.5489]
[1728498890303,4.1073,141.04,140.98,3.5489]
[1728498890601,3.5484,141.0,140.95,5.9]
[1728498890806,21.1473,141.04,140.95,5.9]
[1728498891105,17.04,141.02,140.95,5.9]
[1728498891604,17.04,140.97,140.88,4.2009]
[1728498891806,17.04,140.97,140.88,21.2409]
[1728498892104,3.5498,140.95,140.91,3.5505]
[1728498892406,17.04,140.97,140.89,3.62381148]
[1728498892609,3.55,140.94,140.9,3.5507]
[1728498893107,3.55,140.94,140.89,3.62381148]
[1728498893500,3.5501,140.93,140.89,3.62381148]
[1728498894402,3.5501,140.93,140.9,3.5507]
[1728498894603,3.5501,140.93,140.89,3.62381148]
[1728498895002,3.5501,140.93,140.9,3.5508]
[1728498895307,3.5501,140.93,140.89,3.62381148]
[1728498895497,17.04,140.97,140.89,3.62381148]
[1728498895700,3.5503,140.93,140.9,3.5507]
[1728498897709,3.5506,140.92,140.89,3.551]
[1728498897911,17.04,140.96,140.89,3.551]
[1728498898106,17.04,140.96,140.88,7.68780059]
[1728498898305,3.5507,140.91,140.88,7.68780059]
[1728498898506,17.04,140.96,140.88,7.68780059]
[1728498899109,3.5503,140.93,140.9,3.5507]
[1728498900412,3.55,140.94,140.91,3.5504]
[1728498900809,22.92,140.97,140.88,24.85043597]
[1728498901115,3.5498,140.95,140.92,3.5503]
[1728498901517,22.92,140.97,140.88,24.85043597]
[1728498901716,17.04,140.91,140.87,0.12502]
[1728498902019,5.88,140.93,140.87,0.12502]
[1728498902210,3.5508,140.91,140.87,3.67652]
[1728498902719,5.88,140.93,140.87,3.67652]
[1728498903109,3.5509,140.9,140.87,3.67652]
[1728498903310,96.62336669,140.97,140.89,3.5509]
[1728498903513,3.55,140.94,140.9,5.88]
[1728498904020,3.5501,140.93,140.9,9.4307]
[1728498905222,3.5506,140.91,140.88,3.5513]
[1728498905425,3.5506,140.91,140.89,5.88]
[1728498907217,17.04,140.95,140.89,5.88]
[1728498907417,3.5506,140.92,140.89,9.431]
[1728498908120,3.5507,140.91,140.89,9.431]
[1728498908915,3.5507,140.91,140.89,5.88]
[1728498909618,4.0688,140.98,140.9,17.04]
[1728498909819,4.0688,140.98,140.92,17.04]
[1728498910122,3.5498,140.95,140.93,5.88]
[1728498910422,4.0688,140.98,140.93,5.88]
[1728498910623,3.5492,140.97,140.93,5.88]
[1728498910924,4.0688,140.98,140.93,5.88]
[1728498911223,3.5505,140.92,140.9,5.88]
[1728498911424,4.0688,140.98,140.87,17.16502]
[1728498911642,17.04,140.96,140.88,12.03412738]
[1728498911920,3.551,140.9,140.88,5.88]
[1728498912121,17.04,140.94,140.88,5.88]
[1728498912519,17.04,140.96,140.89,3.5511]
[1728498913722,3.5502,140.93,140.9,3.5507]
[1728498914726,5.88,140.97,140.88,5.88]
[1728498914928,17.04,140.96,140.88,5.88]
[1728498915328,17.04,140.94,140.87,0.12502]
[1728498915527,17.04,140.94,140.88,5.88]
[1728498915721,3.5509,140.9,140.88,12.03516864]
[1728498915926,3.5509,140.9,140.88,5.88]
[1728498916230,3.5514,140.88,140.87,0.12502]
[1728498917831,17.04,140.9,140.87,0.12502]
[1728498917832,3.5512,140.89,140.87,0.12502]
[1728498918128,1.4514,140.91,140.87,0.12502]
[1728498919724,1.4514,140.91,140.87,3.67662]
[1728498920123,3.5511,140.9,140.87,3.67662]
[1728498920724,1.4514,140.91,140.87,3.67662]
[1728498920725,3.5512,140.89,140.87,0.12502]
[1728498920924,1.4514,140.91,140.87,0.12502]
[1728498921733,3.5513,140.89,140.87,0.12502]
[1728498923933,3.5514,140.88,140.87,0.12502]
[1728498926230,3.5513,140.89,140.87,0.12502]
[1728498926422,1.4514,140.91,140.87,0.12502]
[1728498926927,3.5514,140.88,140.87,0.12502]
[1728498927628,3.5512,140.89,140.87,0.12502]
[1728498928029,1.4514,140.91,140.87,0.12502]
[1728498929234,3.5509,140.9,140.87,0.12502]
[1728498929635,2.8163,140.92,140.87,0.12502]
[1728498930238,3.5513,140.89,140.87,0.12502]
[1728498930426,19.8563,140.92,140.87,0.12502]
[1728498930627,17.04,140.9,140.87,0.12502]
[1728498931027,3.5514,140.88,140.87,0.12502]
[1728498932028,17.04,140.88,140.81,0.12502]
[1728498932231,17.04,140.85,140.81,0.12502]
[1728498932536,3.5529,140.82,140.81,0.12502]
[1728498934929,4.9245,140.83,140.81,0.12502]
[1728498935134,1.3717,140.83,140.81,0.12502]
[1728498935543,3.5529,140.82,140.81,0.12502]
[1728498936638,4.9246,140.83,140.81,0.12502]
[1728498937241,1.3717,140.83,140.81,0.12502]
[1728498937545,1.4405,140.84,140.81,0.12502]
[1728498938039,4.9929,140.84,140.81,0.12502]
[1728498938549,3.5526,140.83,140.81,3.67802]
[1728498938741,3.5526,140.83,140.81,0.12502]
[1728498939140,3.5529,140.82,140.81,0.12502]
[1728498939647,1.4405,140.84,140.81,0.12502]
[1728498939840,3.5528,140.83,140.81,0.12502]
[1728498941851,3.5529,140.82,140.81,0.12502]
[1728498943352,3.5539,140.79,140.76,3.5543]
[1728498943555,22.92,140.82,140.75,0.12502]
[1728498943755,22.92,140.82,140.76,3.5542]
[1728498943959,3.5535,140.8,140.75,0.12502]
[1728498944462,3.5533,140.81,140.78,3.5539]
[1728498944759,1.4405,140.84,140.76,17.04]
[1728498944955,3.5533,140.81,140.78,3.5537]
[1728498945152,1.4405,140.84,140.76,17.04]
[1728498945458,1.4405,140.84,140.77,6.15786942]
[1728498945759,1.4405,140.84,140.76,17.04]
[1728498945958,1.4405,140.84,140.77,6.1578321]
[1728498946157,3.5531,140.82,140.76,17.04]
[1728498946455,3.5531,140.82,140.77,6.15720944]
[1728498946658,3.5531,140.82,140.78,3.5537]
[1728498946957,1.4405,140.84,140.78,3.5537]
[1728498947160,1.4405,140.84,140.79,3.5536]
[1728498947663,3.553,140.82,140.79,3.5536]
[1728498949051,4.993,140.84,140.78,5.88]
[1728498949255,17.04,140.85,140.78,5.88]
[1728498949653,3.5525,140.84,140.81,3.553]
[1728498950062,3.5525,140.84,140.78,5.88]
[1728498950259,3.5522,140.85,140.82,3.5527]
[1728498950460,2.7069,140.86,140.82,3.5527]
[1728498950661,3.5524,140.84,140.82,3.5527]
[1728498951656,2.7069,140.86,140.78,22.92]
[1728498951849,3.5528,140.83,140.78,22.92]
[1728498952264,17.04,140.85,140.78,17.04]
[1728498952462,3.5525,140.84,140.78,22.92]
[1728498953162,3.5525,140.84,140.81,3.5531]
[1728498953958,2.7069,140.86,140.78,22.92]
[1728498954169,2.7069,140.86,140.83,3.5525]
[1728498954961,6.2589,140.86,140.83,3.5525]
[1728498955463,2.7069,140.86,140.83,3.5525]
[1728498956262,6.2588,140.86,140.83,3.5525]
[1728498956664,3.5522,140.85,140.82,3.5528]
[1728498957859,3.5522,140.85,140.8,3.5534]
[1728498958064,3.5522,140.85,140.78,22.92]
[1728498958563,3.5522,140.85,140.82,3.5527]
[1728498960258,2.7069,140.86,140.78,22.92]
[1728498960469,3.5526,140.84,140.8,3.5533]
[1728498961359,3.5527,140.83,140.8,3.5533]
[1728498961767,2.7069,140.86,140.81,3.553]
[1728498962068,3.5523,140.85,140.78,22.92]
[1728498962253,2.7069,140.86,140.79,6.16073216]
[1728498962456,2.7069,140.86,140.81,3.553]
[1728498963366,3.5524,140.85,140.82,3.5528]
[1728498963670,2.7069,140.86,140.78,22.92]
[1728498963868,2.7069,140.86,140.84,3.5524]
[1728498964074,2.7069,140.86,140.78,22.92]
[1728498964365,2.7069,140.86,140.79,6.16273161]
[1728498964668,2.7069,140.86,140.78,22.92]
[1728498964862,2.7069,140.86,140.79,6.16365867]
[1728498965070,2.7069,140.86,140.78,22.92]
[1728498965367,2.7069,140.86,140.79,6.16394455]
[1728498965569,2.7069,140.86,140.78,22.92]
[1728498965873,17.04,140.85,140.79,6.16504027]
[1728498966071,17.04,140.85,140.75,0.12502]
[1728498966072,5.88,140.84,140.75,0.12502]
[1728498966264,3.5535,140.8,140.77,3.554]
[1728498968868,5.88,140.84,140.75,6.00502]
[1728498969072,3.553,140.82,140.76,23.20757667]
[1728498969270,5.88,140.84,140.76,17.04]
[1728498969570,3.5526,140.84,140.78,17.04]
[1728498969868,18.49542,140.87,140.75,6.00502]
[1728498969869,0.12502,140.87,140.8,17.04]
[1728498970060,0.12502,140.87,140.81,5.88]
[1728498970370,17.04,140.85,140.81,5.88]
[1728498970672,17.04,140.85,140.79,6.16716365]
[1728498970965,17.04,140.85,140.78,9.9695]
[1728498971173,17.04,140.84,140.79,6.16841632]
[1728498971370,3.5531,140.82,140.77,12.04752728]
[1728498971573,3.5531,140.82,140.78,6.16884421]
[1728498971763,3.5531,140.82,140.79,3.5534]
[1728498974271,3.5531,140.82,140.77,5.88]
[1728498974470,24.3481,140.85,140.78,6.17041854]
[1728498974669,24.3481,140.85,140.77,5.88]
[1728498974877,24.3481,140.85,140.8,3.5532]
[1728498975077,3.5528,140.83,140.8,3.5532]
[1728498975578,4.9813,140.86,140.84,3.5524]
[1728498975779,0.12502,140.87,140.84,3.5524]
[1728498976081,3.5521,140.86,140.83,3.5525]
[1728498976263,0.12502,140.87,140.81,5.88]
[1728498976883,3.552,140.86,140.83,3.5525]
[1728498977376,3.67672,140.87,140.84,3.5522]
[1728498977566,0.12502,140.87,140.82,3.53449456]
[1728498978581,0.12502,140.87,140.83,6.17358447]
[1728498978782,0.12502,140.87,140.84,6.17319123]
[1728498978973,0.12502,140.87,140.83,17.04]
[1728498979172,0.12502,140.87,140.86,3.5519]
[1728498979682,0.12502,140.87,140.86,9.72695088]
[1728498980680,0.12502,140.87,140.86,6.17505088]
[1728498981375,3.67662,140.87,140.86,6.17505088]
[1728498981574,3.67662,140.87,140.84,9.4322]
[1728498981775,3.67662,140.87,140.84,3.5522]
[1728498982891,3.5521,140.86,140.82,9.4327]
[1728498983183,0.12502,140.87,140.83,6.18130557]
[1728498983384,0.12502,140.87,140.84,6.18130557]
[1728498983585,0.12502,140.87,140.83,3.5526]
[1728498983780,0.12502,140.87,140.84,6.18309856]
[1728498984084,3.552,140.86,140.83,3.5526]
[1728498984384,3.552,140.86,140.84,6.18339108]
[1728498984583,3.552,140.86,140.82,5.88]
[1728498984885,3.67672,140.87,140.83,6.18506111]
[1728498985087,0.12502,140.87,140.84,6.18506111]
[1728498985379,3.67672,140.87,140.85,6.18506111]
[1728498985575,0.12502,140.87,140.82,5.88]
[1728498985780,0.12502,140.87,140.83,6.18598017]
[1728498985982,0.12502,140.87,140.85,3.552]
[1728498986183,0.12502,140.87,140.86,6.18598017]
[1728498986376,0.12502,140.87,140.86,9.73788017]
[1728498986786,0.12502,140.87,140.86,6.18598017]
[1728498989886,3.67662,140.87,140.86,6.18598017]
[1728498990087,0.12502,140.87,140.8,5.88]
[1728498990277,0.12502,140.87,140.81,6.18789049]
[1728498990481,3.67672,140.87,140.84,3.5521]
[1728498990681,3.67672,140.87,140.85,6.18789049]
[1728498990881,3.67672,140.87,140.86,6.18789049]
[1728498991082,0.12502,140.87,140.8,22.92]
[1728498991390,0.12502,140.87,140.83,3.5525]
[1728498991681,0.12502,140.87,140.84,6.18885834]
[1728498991884,0.12502,140.87,140.85,6.18885834]
[1728498992085,2.93232,140.87,140.81,3.553]
[1728498992384,2.93232,140.87,140.82,6.18966915]
[1728498992689,2.93232,140.87,140.81,3.553]
[1728498992690,2.93232,140.87,140.83,6.18966915]
[1728498992894,2.93232,140.87,140.84,6.18966915]
[1728498993077,2.93232,140.87,140.82,3.5528]
[1728498993388,2.93232,140.87,140.83,6.19088123]
[1728498993584,2.93232,140.87,140.84,6.19088123]
[1728498993789,2.93232,140.87,140.82,3.5528]
[1728498994089,2.93232,140.87,140.83,6.19153853]
[1728498994279,2.93232,140.87,140.84,6.19153853]
[1728498994475,2.93232,140.87,140.82,3.5528]
[1728498994677,44.24,140.86,140.83,2.31873514]
[1728498994878,17.04,140.84,140.72,21.2289]
[1728498995078,17.04,140.81,140.73,3.50039491]
[1728498995281,5.88,140.8,140.75,3.67962]
[1728498995493,3.554,140.78,140.75,3.67962]
[1728498996184,5.88,140.8,140.75,0.12502]
[1728498996185,3.5543,140.77,140.75,0.12502]
[1728498996497,17.04,140.79,140.75,0.12502]
[1728498996990,3.5541,140.78,140.75,0.12502]
[1728498997488,3.5537,140.79,140.76,3.5543]
[1728498997690,5.88,140.79,140.75,0.12502]
[1728498998686,3.554,140.78,140.75,0.12502]
[1728498998881,5.88,140.79,140.75,0.12502]
[1728498999493,3.554,140.78,140.75,0.12502]
[1728498999696,5.88,140.79,140.75,0.12502]
[1728498999992,3.554,140.78,140.75,3.67952]
[1728499000194,5.88,140.79,140.75,0.12502]
[1728499000599,9.4338,140.79,140.76,3.5543]
[1728499001188,5.88,140.79,140.75,0.12502]
[1728499001996,3.5542,140.78,140.75,3.67952]
[1728499002493,5.88,140.79,140.75,0.12502]
[1728499002800,3.554,140.78,140.75,0.12502]
[1728499002998,2.7207,140.81,140.75,0.12502]
[1728499003202,8.6007,140.81,140.75,0.12502]
[1728499003411,12.154,140.81,140.75,0.12502]
[1728499003899,3.5534,140.8,140.77,3.554]
[1728499004116,21.32,140.88,140.75,0.12502]
[1728499004117,17.04,140.83,140.75,0.12502]
[1728499004409,3.5535,140.8,140.75,0.12502]
[1728499004605,5.88,140.82,140.75,17.16502]
[1728499004807,5.88,140.82,140.77,17.04]
[1728499005219,17.04,140.85,140.77,17.04]
[1728499005418,5.88,140.84,140.77,17.04]
[1728499005613,3.5529,140.82,140.79,3.5536]
[1728499005814,3.5529,140.82,140.77,17.04]
[1728499006312,3.5527,140.83,140.81,3.5531]
[1728499006512,5.88,140.84,140.81,3.5531]
[1728499007220,2.8105,140.86,140.82,3.5528]
[1728499007415,17.16502,140.87,140.82,3.5528]
[1728499007628,3.5523,140.85,140.82,3.5528]
[1728499009018,6.00502,140.87,140.79,29.29900348]
[1728499009323,0.12502,140.87,140.8,23.14946221]
[1728499009622,3.5519,140.86,140.83,3.5525]
[1728499012117,3.5519,140.86,140.8,17.04]
[1728499012322,3.67672,140.87,140.84,3.5524]
[1728499012519,0.12502,140.87,140.81,6.10875475]
[1728499012720,0.12502,140.87,140.82,3.5528]
[1728499012916,0.12502,140.87,140.81,6.10875475]